fUSD/lending_fUSD_20240331
["ID","MTS","AMOUNT","RATE_DAILY","PERIOD"]
[321067229,1711858246439,-150.0,0.00040759,4]
[321067230,1711858246448,-157.12,0.0004076,2]
[321067231,1711858246458,-286.06,0.00040821,2]
[321067232,1711858246467,-157.98995818,0.0004116,30]
[321067233,1711858246476,-1380.1813,0.00041432,2]
[321067234,1711858246486,-432.6953,0.00041432,2]
[321067235,1711858246496,-165.76783,0.00041437,30]
[321067236,1711858246505,-166.73145783,0.00041492,30]
[321067237,1711858246515,-1500.0,0.000415,2]
[321067238,1711858246525,-1500.0,0.000415,2]
[321067239,1711858246534,-436.27475279,0.000415,2]
[321067264,1711859030159,153.23359524,0.00041921,41]
[321067284,1711859432278,-165.49985863,0.00032899,2]
[321067286,1711859432287,-2177.89617147,0.00032998,4]
[321067301,1711859438667,-357.66933394,0.00032998,4]
[321067302,1711859438677,-250.0,0.00033,3]
[321067303,1711859438686,-257.45,0.00037806,2]
[321067304,1711859438695,-908.33546558,0.00038356,7]
[321067305,1711859438706,-91.66453442,0.00038356,7]
[321067306,1711859438715,-550.90351694,0.00038672,7]
[321067318,1711859440363,-449.09648306,0.00038672,7]
[321067319,1711859440373,-1000.0,0.00038988,7]
[321067320,1711859440383,-203.005699,0.00039301,2]
[321067321,1711859440392,-581.369125,0.00039301,2]
[321067322,1711859440402,-1000.0,0.00039305,7]
[321067323,1711859440411,-1000.0,0.00039621,7]
[321067324,1711859440420,-396.69,0.00039621,2]
[321067325,1711859440430,-547.0,0.00039726,7]
[321067326,1711859440439,-581.369125,0.00039792,2]
[321067327,1711859440448,-1000.0,0.00039937,7]
[321067328,1711859440457,-1560.46113401,0.00039967,2]
[321067329,1711859440468,-108.99886599,0.00039967,2]
[321067330,1711859440478,-1466.48,0.00040011,2]
[321067331,1711859440487,-194.92,0.00040049,2]
[321067332,1711859440496,-250.0,0.00040055,2]
[321067333,1711859440506,-257.45,0.0004007,2]
[321067334,1711859440515,-288.0,0.00040091,2]
[321067335,1711859440525,-151.8,0.00040111,15]
[321067336,1711859440536,-3247.3,0.00040139,2]
[321067337,1711859440546,-1000.0,0.00040253,7]
[321067338,1711859440557,-581.369125,0.00040284,2]
[321067339,1711859440566,-1400.90080374,0.00040341,2]
[321067340,1711859440577,-8465.84919626,0.00040341,2]
[321067341,1711859440586,-477.93466836,0.00040405,2]
[321067342,1711859440597,-234.06533164,0.00040405,2]
[321067343,1711859440606,-160.26,0.00040459,2]
[321067344,1711859440615,-1000.0,0.00040569,7]
[321067345,1711859440624,-352.32974,0.00040759,6]
[321067346,1711859440633,-581.369125,0.00040775,2]
[321067347,1711859440642,-1000.0,0.00040885,7]
[321067348,1711859440650,-431.61,0.00040978,2]
[321067349,1711859440659,-358.81,0.00040978,2]
[321067350,1711859440669,-2257.79246462,0.00041,14]
[321067351,1711859440679,-1632.0,0.00041,2]
[321067352,1711859440688,-150.0,0.00041113,2]
[321067353,1711859440698,-162.62326103,0.00041137,30]
[321067354,1711859440707,-500.0,0.00041146,30]
[321067355,1711859440717,-256.68873923,0.00041201,14]
[321067356,1711859440728,-743.31126077,0.00041201,14]
[321067357,1711859440737,-581.369125,0.00041266,30]
[321067358,1711859440746,-158.6555427,0.00041392,30]
[321067359,1711859440755,-155.59992333,0.00041417,2]
[321067360,1711859440764,-170.78414156,0.00041417,10]
[321067361,1711859440773,-1392.35,0.0004142,2]
[321067362,1711859440782,-460.463,0.0004142,2]
[321067363,1711859440791,-2439.892,0.0004142,2]
[321067365,1711859440800,-966.873,0.0004142,2]
[321067367,1711859440809,-1263.3,0.0004142,2]
[321067369,1711859440818,-611.24224153,0.0004142,2]
[321067371,1711859440830,-624.16975847,0.0004142,2]
[321067374,1711859440840,-447.10024158,0.0004142,2]
[321067376,1711859440851,-93.58775842,0.0004142,2]
[321067378,1711859440860,-155.59992333,0.00041451,2]
[321067379,1711859440869,-155.59992333,0.00041484,2]
[321067380,1711859440878,-511.89655959,0.00041499,3]
[321067381,1711859440887,-1133.23524721,0.000415,2]
[321067382,1711859440896,-1500.0,0.000415,2]
[321067383,1711859440905,-4864.7238055,0.000415,21]
[321067384,1711859440915,-78624.29935963,0.000415,7]
[321067515,1711859443521,-1473.863,0.00041006,2]
[321067516,1711859443531,-4084.85645114,0.000415,7]
[321067517,1711859443543,-94942.10226195,0.000415,7]
[321067518,1711859443554,-72348.74192728,0.000415,7]
[321067519,1711859443564,-1000.0,0.00041517,14]
[321067520,1711859443574,-155.59992333,0.00041518,2]
[321067521,1711859443584,-719.89497829,0.00041531,4]
[321067522,1711859443594,-155.59992333,0.00041552,2]
[321067523,1711859443605,-202.875278,0.00041579,20]
[321067524,1711859443614,-155.59992333,0.00041585,2]
[321067525,1711859443624,-206.38803,0.00041603,15]
[321067526,1711859443634,-800.0,0.00041603,20]
[321067527,1711859443643,-155.59992333,0.00041619,2]
[321067528,1711859443653,-152.181762,0.00041622,30]
[321067529,1711859443663,-155.59992333,0.00041653,2]
[321067530,1711859443672,-170.78414156,0.00041658,10]
[321067531,1711859443682,-155.59992333,0.00041686,2]
[321067532,1711859443691,-500.0,0.00041694,30]
[321067533,1711859443701,-9227.9053457,0.00041701,2]
[321067534,1711859443711,-2779.4585,0.00041706,2]
[321067535,1711859443720,-155.59992333,0.0004172,2]
[321067536,1711859443729,-2631.0199,0.00041723,2]
[321067537,1711859443739,-155.59992333,0.00041754,2]
[321067538,1711859443748,-155.59992333,0.00041787,2]
[321067539,1711859443757,-150.8,0.0004179,2]
[321067540,1711859443767,-150.8,0.0004179,2]
[321067541,1711859443776,-150.8,0.0004179,2]
[321067542,1711859443786,-150.8,0.0004179,2]
[321067543,1711859443795,-150.8,0.0004179,2]
[321067544,1711859443805,-150.8,0.0004179,2]
[321067545,1711859443814,-150.8,0.0004179,2]
[321067546,1711859443823,-150.8,0.0004179,2]
[321067547,1711859443833,-150.8,0.0004179,2]
[321067548,1711859443842,-150.8,0.0004179,2]
[321067549,1711859443852,-150.8,0.0004179,2]
[321067550,1711859443862,-150.8,0.0004179,2]
[321067551,1711859443871,-150.8,0.0004179,2]
[321067552,1711859443881,-154.75429573,0.00041795,13]
[321067553,1711859443890,-2059.21440081,0.00041795,16]
[321067554,1711859443900,-165.49985863,0.00041795,2]
[321067555,1711859443910,-850.10191746,0.00041797,2]
[321067556,1711859443920,-500.0,0.00041799,4]
[321067557,1711859443929,-500.0,0.00041799,4]
[321067558,1711859443939,-526.8,0.00041799,4]
[321067560,1711859443949,-500.0,0.00041799,4]
[321067562,1711859443958,-500.0,0.00041799,4]
[321067564,1711859443968,-9152.33,0.00041799,4]
[321067565,1711859443977,-500.0,0.00041799,4]
[321067566,1711859443986,-838.87,0.00041799,4]
[321067567,1711859443995,-882.7,0.00041799,4]
[321067568,1711859444005,-971.95,0.00041799,4]
[321067569,1711859444014,-514.59,0.00041799,4]
[321067570,1711859444023,-598.76,0.00041799,4]
[321067571,1711859444032,-500.0,0.00041799,4]
[321067572,1711859444042,-500.0,0.00041799,4]
[321067573,1711859444053,-500.0,0.00041799,4]
[321067574,1711859444063,-500.0,0.00041799,4]
[321067575,1711859444072,-500.0,0.00041799,4]
[321067576,1711859444082,-2104.96,0.00041799,4]
[321067577,1711859444092,-608.49,0.00041799,4]
[321067578,1711859444101,-500.0,0.00041799,4]
[321067579,1711859444111,-500.0,0.00041799,4]
[321067580,1711859444121,-508.84535006,0.00041799,4]
[321067581,1711859444131,-516.13,0.00041799,4]
[321067582,1711859444140,-1539.44,0.00041799,4]
[321067583,1711859444150,-759.67,0.00041799,4]
[321067584,1711859444160,-500.0,0.00041799,4]
[321067585,1711859444171,-758.39,0.00041799,4]
[321067586,1711859444181,-500.0,0.00041799,4]
[321067587,1711859444191,-2094.61,0.00041799,4]
[321067588,1711859444200,-864.49,0.00041799,4]
[321067589,1711859444210,-500.0,0.00041799,4]
[321067590,1711859444220,-500.0,0.00041799,4]
[321067591,1711859444234,-556.86,0.00041799,4]
[321067592,1711859444244,-500.0,0.00041799,4]
[321067593,1711859444254,-500.0,0.00041799,4]
[321067594,1711859444264,-500.0,0.00041799,4]
[321067595,1711859444274,-1076.22,0.00041799,4]
[321067596,1711859444284,-1958.21,0.00041799,4]
[321067597,1711859444294,-1961.69,0.00041799,4]
[321067598,1711859444304,-737.5,0.00041799,4]
[321067599,1711859444315,-500.0,0.00041799,4]
[321067600,1711859444325,-659.13,0.00041799,4]
[321067601,1711859444335,-932.75,0.00041799,4]
[321067602,1711859444345,-500.0,0.00041799,4]
[321067603,1711859444354,-564.28,0.00041799,4]
[321067604,1711859444365,-1406.95,0.00041799,4]
[321067605,1711859444375,-561.77,0.00041799,4]
[321067606,1711859444385,-500.0,0.00041799,4]
[321067607,1711859444394,-1300.63,0.00041799,4]
[321067608,1711859444403,-1192.4,0.00041799,4]
[321067609,1711859444413,-533.09,0.00041799,4]
[321067610,1711859444423,-500.0,0.00041799,4]
[321067611,1711859444433,-500.0,0.00041799,4]
[321067612,1711859444442,-500.0,0.00041799,4]
[321067613,1711859444453,-500.0,0.00041799,4]
[321067614,1711859444464,-500.0,0.00041799,4]
[321067615,1711859444474,-1513.47,0.00041799,4]
[321067616,1711859444484,-2563.95,0.00041799,4]
[321067617,1711859444493,-500.0,0.00041799,4]
[321067618,1711859444503,-500.0,0.00041799,4]
[321067619,1711859444514,-2035.76,0.00041799,4]
[321067620,1711859444524,-500.0,0.00041799,4]
[321067621,1711859444534,-500.0,0.00041799,4]
[321067622,1711859444544,-1583.25,0.00041799,4]
[321067623,1711859444555,-500.0,0.00041799,2]
[321067624,1711859444565,-2121.87,0.00041799,4]
[321067625,1711859444575,-500.0,0.00041799,4]
[321067626,1711859444584,-1317.22,0.00041799,4]
[321067627,1711859444595,-500.0,0.00041799,4]
[321067628,1711859444604,-500.0,0.00041799,4]
[321067629,1711859444615,-3369.12,0.00041799,4]
[321067630,1711859444625,-182.90433088,0.00041799,4]
[321067631,1711859444635,-500.0,0.00041799,4]
[321067632,1711859444645,-500.0,0.00041799,4]
[321067633,1711859444654,-1121.18,0.00041799,4]
[321067634,1711859444664,-541229.15067363,0.000418,3]
[321067635,1711859444938,-2411.81093767,0.000418,3]
[321067636,1711859444951,-1858.97186534,0.000418,3]
[321067637,1711859444982,-252.281103,0.000418,3]
[321067638,1711859445096,-16997.92196575,0.000418,3]
[321067639,1711859445129,-1247.95766396,0.000418,3]
[321067648,1711859446416,-1106.08,0.00041799,4]
[321067649,1711859446427,-1522.62123885,0.000418,3]
[321067650,1711859446584,-1306.46412809,0.000418,3]
[321067651,1711859446597,-6909.56247689,0.000418,3]
[321067683,1711860637710,-250.0,0.00033,3]
[321067684,1711860637720,-240.0,0.000354,3]
[321067685,1711860637730,-231.7,0.00038583,2]
[321067686,1711860637740,-976.64,0.0004048,2]
[321067687,1711860637749,-151.8,0.00040523,15]
[321067688,1711860637759,-230.4,0.00040546,2]
[321067689,1711860637768,-162.43,0.00040582,2]
[321067690,1711860637778,-166.10053764,0.00040628,2]
[321067691,1711860637787,-769.6,0.0004077,2]
[321067692,1711860637797,-151.69,0.00040809,2]
[321067693,1711860637807,-231.7,0.00040847,2]
[321067694,1711860637817,-550.0,0.00041,41]
[321067695,1711860637827,-150.99,0.00041,2]
[321067696,1711860637836,-159.95438012,0.00041018,30]
[321067697,1711860637846,-158.65554271,0.00041243,30]
[321067698,1711860637856,-1427.1159677,0.00041361,2]
[321067699,1711860637866,-1122.07549733,0.00041404,2]
[321067700,1711860639588,-305.04047037,0.00041404,2]
[321067701,1711860639599,-163.51451484,0.00041428,30]
[321067702,1711860639609,-163.51451484,0.00041498,30]
[321067703,1711860639618,-418.76549995,0.000415,40]
[321067714,1711860875823,151.38291686,0.00041921,120]
[321067731,1711861831646,-1616.31417857,0.00032986,4]
[321067732,1711861831658,-1131.21788392,0.00032986,4]
[321067733,1711861831667,-500.0,0.00032997,2]
[321067735,1711861831677,-2408.01202023,0.00032998,4]
[321067736,1711861831686,-375.0,0.000354,3]
[321067738,1711861831696,-243.95,0.00037769,2]
[321067740,1711861831706,-968.72,0.00039601,2]
[321067742,1711861831715,-286.04,0.00039609,2]
[321067743,1711861831725,-4600.10939739,0.0003981,2]
[321067744,1711861831733,-12341.6793071,0.0003981,2]
[321067745,1711861831742,-170.78414156,0.0003981,9]
[321067746,1711861831751,-151.8,0.00039839,15]
[321067747,1711861831760,-151.22,0.0003987,2]
[321067748,1711861831769,-151.22,0.0003987,2]
[321067749,1711861831778,-169.59,0.0003987,2]
[321067750,1711861831787,-8070.6572498,0.0003988,2]
[321067751,1711861831798,-532.04449168,0.0003988,2]
[321067752,1711861831825,-461.33643271,0.0003988,2]
[321067753,1711861831836,-58079.94682378,0.0003988,2]
[321067754,1711861831884,-265.16450645,0.0003988,2]
[321067755,1711861831895,-28173.1516179,0.0003988,2]
[321067756,1711861831912,-756.27288357,0.0003988,2]
[321067757,1711861831933,-5141.00196918,0.0003988,2]
[321067758,1711861831946,-2768.34369956,0.0003988,2]
[321067759,1711861831958,-500.0,0.0003988,2]
[321067760,1711861831968,-811.05669613,0.0003988,2]
[321067761,1711861831983,-363.65944308,0.0003988,2]
[321067762,1711861831997,-9297.21302661,0.0003988,2]
[321067763,1711861832016,-4657.96426151,0.0003988,2]
[321067764,1711861832028,-407861.6088488,0.0003988,2]
[321067765,1711861832037,-229.15,0.0003991,2]
[321067767,1711861832046,-277.2498121,0.0004,5]
[321067769,1711861832055,-243.95,0.00040033,2]
[321067771,1711861832064,-162.43,0.00040153,2]
[321067773,1711861832073,-12341.67930703,0.00040462,2]
[321067775,1711861832082,-4600.10939733,0.00040465,2]
[321067777,1711861832091,-1115.83,0.000405,2]
[321067779,1711861832100,-170.78414156,0.00040507,9]
[321067781,1711861832109,-1000.0,0.00040588,2]
[321067783,1711861832118,-292.21,0.0004094,2]
[321067785,1711861832127,-1006.14609721,0.00041,14]
[321067787,1711861832136,-150.8,0.00041,2]
[321067789,1711861832145,-150.8,0.00041,2]
[321067791,1711861832154,-244.18316523,0.00041085,2]
[321067793,1711861832163,-150.8,0.00041085,2]
[321067795,1711861832172,-150.8,0.00041085,2]
[321067797,1711861832181,-150.8,0.00041085,2]
[321067799,1711861832190,-639.55392399,0.00041092,2]
[321067801,1711861832200,-500.0,0.00041095,4]
[321067803,1711861832209,-500.0,0.00041095,4]
[321067805,1711861832218,-500.0,0.00041095,4]
[321067807,1711861832227,-500.0,0.00041095,4]
[321067809,1711861832236,-1074.47,0.00041095,4]
[321067811,1711861832245,-500.0,0.00041095,4]
[321067813,1711861832254,-500.0,0.00041095,4]
[321067815,1711861832263,-500.0,0.00041095,4]
[321067817,1711861832272,-500.0,0.00041095,4]
[321067819,1711861832281,-500.0,0.00041095,4]
[321067821,1711861832290,-1405.5,0.00041095,4]
[321067823,1711861832299,-500.0,0.00041095,4]
[321067825,1711861832308,-500.0,0.00041095,4]
[321067827,1711861832317,-500.0,0.00041095,4]
[321067829,1711861832326,-500.0,0.00041095,4]
[321067831,1711861832335,-500.0,0.00041095,4]
[321067833,1711861832344,-500.0,0.00041095,4]
[321067835,1711861832353,-500.0,0.00041095,4]
[321067837,1711861832362,-338.96,0.00041095,4]
[321067839,1711861832371,-500.0,0.00041095,4]
[321067841,1711861832379,-287.64319952,0.00041095,4]
[321067843,1711861832388,-500.0,0.00041095,4]
[321067845,1711861832397,-500.0,0.00041095,4]
[321067846,1711861832406,-500.0,0.00041095,4]
[321067849,1711861832415,-500.0,0.00041095,4]
[321067851,1711861832425,-519.85746413,0.00041095,4]
[321067853,1711861832434,-500.0,0.00041095,4]
[321067855,1711861832444,-532.75485185,0.00041095,4]
[321067857,1711861832453,-500.0,0.00041095,4]
[321067859,1711861832464,-530.72074838,0.00041095,4]
[321067861,1711861832474,-544.51315986,0.00041095,4]
[321067863,1711861832483,-500.0,0.00041095,4]
[321067864,1711861832491,-500.0,0.00041095,4]
[321067867,1711861832501,-500.0,0.00041095,4]
[321067869,1711861832511,-529.64800435,0.00041095,4]
[321067871,1711861832522,-510.31687758,0.00041095,4]
[321067873,1711861832530,-507.28,0.00041095,4]
[321067875,1711861832539,-508.45845383,0.00041095,4]
[321067877,1711861832548,-625.59495731,0.00041095,4]
[321067878,1711861832557,-500.0,0.00041095,4]
[321067880,1711861832567,-500.0,0.00041095,4]
[321067883,1711861832577,-500.0,0.00041095,4]
[321067885,1711861832586,-153.33848941,0.00041095,4]
[321067887,1711861832599,-186.75230477,0.00041095,4]
[321067889,1711861832608,-593.67259166,0.00041095,4]
[321067891,1711861832618,-500.0,0.00041095,4]
[321067893,1711861832627,-527.16020287,0.00041095,4]
[321067895,1711861832636,-500.0,0.00041095,4]
[321067897,1711861832645,-514.16692738,0.00041095,4]
[321067899,1711861832655,-500.0,0.00041095,4]
[321067901,1711861832665,-500.0,0.00041095,4]
[321067903,1711861832674,-500.0,0.00041095,4]
[321067905,1711861832683,-528.85735533,0.00041095,4]
[321067907,1711861832692,-500.0,0.00041095,4]
[321067909,1711861832702,-519.36658032,0.00041095,4]
[321067911,1711861832711,-500.0,0.00041095,4]
[321067913,1711861832721,-548.550652,0.00041095,4]
[321067915,1711861832730,-513.85746071,0.00041095,4]
[321067917,1711861832739,-500.0,0.00041095,4]
[321067918,1711861832749,-500.0,0.00041095,4]
[321067920,1711861832758,-509.24491994,0.00041095,4]
[321067922,1711861832767,-500.0,0.00041095,4]
[321067925,1711861832777,-500.0,0.00041095,4]
[321067926,1711861832786,-150.0,0.00041095,4]
[321067927,1711861832796,-500.0,0.00041095,4]
[321067928,1711861832805,-898.69,0.00041095,4]
[321067929,1711861832815,-500.0,0.00041095,4]
[321067930,1711861832825,-508.00689963,0.00041095,4]
[321067931,1711861832836,-511.30273905,0.00041095,4]
[321067932,1711861832845,-500.0,0.00041095,4]
[321067933,1711861832854,-500.0,0.00041095,4]
[321067934,1711861832864,-500.0,0.00041095,4]
[321067935,1711861832873,-500.0,0.00041095,4]
[321067936,1711861832882,-500.0,0.00041095,4]
[321067937,1711861832891,-540.95,0.00041095,2]
[321067938,1711861832900,-500.0,0.00041095,4]
[321067939,1711861832910,-500.0,0.00041095,4]
[321067940,1711861832919,-500.0,0.00041095,4]
[321067941,1711861832928,-500.0,0.00041095,4]
[321067942,1711861832941,-553.27348027,0.00041095,4]
[321067943,1711861832951,-500.0,0.00041095,4]
[321067944,1711861832960,-500.0,0.00041095,4]
[321067945,1711861833160,-500.0,0.00041095,4]
[321067946,1711861833170,-500.0,0.00041095,4]
[321067947,1711861833179,-500.0,0.00041095,4]
[321067948,1711861833188,-500.0,0.00041095,4]
[321067949,1711861833197,-500.0,0.00041095,4]
[321067950,1711861833207,-681.18,0.00041095,4]
[321067951,1711861833217,-500.0,0.00041095,4]
[321067952,1711861833226,-370.37333831,0.00041095,4]
[321067953,1711861833235,-500.0,0.00041095,4]
[321067954,1711861833245,-500.0,0.00041095,4]
[321067955,1711861833254,-533.69591444,0.00041095,4]
[321067956,1711861833263,-500.0,0.00041095,4]
[321067957,1711861833273,-500.0,0.00041095,4]
[321067958,1711861833282,-500.0,0.00041095,4]
[321067959,1711861833292,-402.40971792,0.00041095,4]
[321067960,1711861833302,-500.0,0.00041095,4]
[321067961,1711861833311,-500.0,0.00041095,4]
[321067962,1711861833320,-500.0,0.00041095,4]
[321067963,1711861833329,-500.0,0.00041095,4]
[321067964,1711861833339,-1733.02,0.00041095,4]
[321067965,1711861833348,-500.0,0.00041095,4]
[321067966,1711861833358,-500.0,0.00041095,4]
[321067967,1711861833367,-500.0,0.00041095,4]
[321067968,1711861833377,-500.0,0.00041095,4]
[321067969,1711861833386,-500.0,0.00041095,4]
[321067970,1711861833395,-500.0,0.00041095,4]
[321067971,1711861833404,-2273.27,0.00041095,4]
[321067972,1711861833413,-500.0,0.00041095,4]
[321067973,1711861833422,-500.0,0.00041095,4]
[321067974,1711861833431,-1059.99,0.00041095,4]
[321067975,1711861833440,-500.0,0.00041095,4]
[321067976,1711861833450,-1262.34,0.00041095,4]
[321067977,1711861833460,-1460.14,0.00041095,4]
[321067978,1711861833470,-500.0,0.00041095,4]
[321067979,1711861833479,-2033.45,0.00041095,4]
[321067980,1711861833488,-500.0,0.00041095,4]
[321067981,1711861833497,-500.0,0.00041095,4]
[321067982,1711861833506,-2461.47,0.00041095,4]
[321067983,1711861833515,-500.0,0.00041095,4]
[321067984,1711861833525,-500.0,0.00041095,4]
[321067985,1711861833535,-979.78,0.00041095,4]
[321067986,1711861833544,-500.0,0.00041095,4]
[321067987,1711861833553,-500.0,0.00041095,4]
[321067988,1711861833562,-500.0,0.00041095,4]
[321067989,1711861833571,-500.0,0.00041095,4]
[321067990,1711861833581,-1334.34,0.00041095,4]
[321067991,1711861833590,-8770.99,0.00041095,4]
[321067992,1711861833599,-601.94,0.00041095,4]
[321067993,1711861833608,-500.0,0.00041095,4]
[321067994,1711861833617,-500.0,0.00041095,4]
[321067995,1711861833626,-513.47,0.00041095,4]
[321067996,1711861833635,-500.0,0.00041095,4]
[321067997,1711861833644,-803.91,0.00041095,4]
[321067998,1711861833653,-500.0,0.00041095,4]
[321067999,1711861833663,-3205.48,0.00041095,4]
[321068000,1711861833672,-500.0,0.00041095,4]
[321068001,1711861833681,-500.0,0.00041095,4]
[321068002,1711861833690,-1332.98,0.00041095,4]
[321068003,1711861833701,-454.39218922,0.00041095,4]
[321068004,1711861833712,-500.0,0.00041095,4]
[321068005,1711861833722,-500.0,0.00041095,4]
[321068006,1711861833731,-500.0,0.00041095,4]
[321068007,1711861833740,-500.0,0.00041095,4]
[321068008,1711861833749,-1771.12,0.00041095,4]
[321068009,1711861833758,-500.0,0.00041095,4]
[321068010,1711861833767,-6562.7,0.00041095,4]
[321068011,1711861833776,-1140.16,0.00041095,4]
[321068012,1711861833785,-1620.63,0.00041095,4]
[321068013,1711861833794,-500.0,0.00041095,4]
[321068014,1711861833803,-500.0,0.00041095,4]
[321068015,1711861833812,-500.0,0.00041095,4]
[321068016,1711861833822,-500.0,0.00041095,4]
[321068017,1711861833831,-500.0,0.00041095,4]
[321068018,1711861833840,-1171.93,0.00041095,4]
[321068019,1711861833850,-500.0,0.00041095,4]
[321068020,1711861833859,-500.0,0.00041095,4]
[321068021,1711861833869,-500.0,0.00041095,4]
[321068022,1711861833878,-500.0,0.00041095,4]
[321068023,1711861833887,-931.45,0.00041095,4]
[321068024,1711861833897,-607.82646354,0.00041095,4]
[321068025,1711861833906,-500.0,0.00041095,4]
[321068026,1711861833915,-500.0,0.00041095,4]
[321068027,1711861833924,-500.0,0.00041095,4]
[321068028,1711861833936,-1025.69,0.00041095,4]
[321068029,1711861833946,-500.0,0.00041095,4]
[321068030,1711861833957,-500.0,0.00041095,4]
[321068031,1711861833966,-500.0,0.00041095,4]
[321068032,1711861833975,-500.0,0.00041095,4]
[321068033,1711861833986,-500.0,0.00041095,4]
[321068034,1711861833995,-793.2,0.00041095,4]
[321068035,1711861834004,-2044.18,0.00041095,4]
[321068036,1711861834016,-500.0,0.00041095,4]
[321068037,1711861834025,-500.0,0.00041095,4]
[321068038,1711861834034,-500.0,0.00041095,4]
[321068039,1711861834044,-583.14,0.00041095,4]
[321068040,1711861834056,-500.0,0.00041095,4]
[321068041,1711861834066,-500.0,0.00041095,4]
[321068042,1711861834076,-776.94,0.00041095,4]
[321068043,1711861834085,-931.37,0.00041095,4]
[321068044,1711861834094,-500.0,0.00041095,4]
[321068045,1711861834104,-418.6,0.00041095,4]
[321068046,1711861834114,-726.79,0.00041095,4]
[321068047,1711861834123,-500.0,0.00041095,4]
[321068048,1711861834133,-500.0,0.00041095,4]
[321068049,1711861834142,-500.0,0.00041095,4]
[321068050,1711861834152,-2017.25,0.00041095,4]
[321068051,1711861834161,-676.17,0.00041095,4]
[321068052,1711861834170,-2400.15,0.00041095,4]
[321068053,1711861834180,-906.78,0.00041095,4]
[321068054,1711861834189,-533.66,0.00041095,4]
[321068055,1711861834200,-689.21,0.00041095,4]
[321068056,1711861834209,-728.01,0.00041095,4]
[321068057,1711861834219,-500.0,0.00041095,4]
[321068058,1711861834228,-546.15,0.00041095,4]
[321068059,1711861834238,-1390.12,0.00041095,4]
[321068060,1711861834247,-821.33,0.00041095,4]
[321068061,1711861834257,-500.0,0.00041095,4]
[321068062,1711861834266,-500.0,0.00041095,4]
[321068063,1711861834275,-500.0,0.00041095,4]
[321068064,1711861834285,-524.19713051,0.00041095,4]
[321068065,1711861834294,-828.47,0.00041095,4]
[321068066,1711861834303,-500.0,0.00041095,4]
[321068067,1711861834313,-500.0,0.00041095,4]
[321068068,1711861834322,-1816.69,0.00041095,4]
[321068069,1711861834331,-500.0,0.00041095,4]
[321068070,1711861834341,-500.0,0.00041095,4]
[321068071,1711861834350,-500.0,0.00041095,4]
[321068072,1711861834359,-500.0,0.00041095,4]
[321068073,1711861834369,-1879.95,0.00041095,4]
[321068074,1711861834379,-500.0,0.00041095,4]
[321068075,1711861834388,-684.97,0.00041095,4]
[321068076,1711861834398,-2007.33,0.00041095,4]
[321068077,1711861834407,-500.0,0.00041095,4]
[321068078,1711861834416,-500.0,0.00041095,4]
[321068079,1711861834425,-500.0,0.00041095,4]
[321068080,1711861834435,-500.0,0.00041095,4]
[321068081,1711861834444,-500.0,0.00041095,4]
[321068082,1711861834454,-893.89,0.00041095,4]
[321068083,1711861834463,-657.24,0.00041095,4]
[321068084,1711861834472,-500.0,0.00041095,4]
[321068085,1711861834481,-500.0,0.00041095,4]
[321068086,1711861834490,-531.78022561,0.00041095,4]
[321068087,1711861834499,-575.08,0.00041095,4]